[Event "Late-Titled-Tuesday-Blitz-March-19-2024"]
[Site "Chess.com"]
[Date "2024.03.19"]
[Round "10"]
[White "ViktoriyaTarasova"]
[Black "ninguno46"]
[Result "1-0"]
[WhiteElo "2363"]
[BlackElo "2524"]
[TimeControl "180+1"]
[EndTime "15:54:50 PDT"]
[Termination "ViktoriyaTarasova won by resignation"]

1. d4 {[%clk 0:03:00.9]} 1... Nf6 {[%clk 0:02:59.2]} 2. c4 {[%clk 0:03:01.2]}
2... g6 {[%clk 0:02:58.1]} 3. Nc3 {[%clk 0:03:01.4]} 3... d5 {[%clk 0:02:58.3]}
4. cxd5 {[%clk 0:02:59.3]} 4... Nxd5 {[%clk 0:02:58]} 5. g3 {[%clk 0:03:00.1]}
5... Bg7 {[%clk 0:02:56.4]} 6. Bg2 {[%clk 0:03:00.5]} 6... Nb6 {[%clk
0:02:56.5]} 7. Nf3 {[%clk 0:03:00.5]} 7... O-O {[%clk 0:02:56.1]} 8. O-O {[%clk
0:03:00.6]} 8... Nc6 {[%clk 0:02:55.4]} 9. e3 {[%clk 0:03:01.1]} 9... Re8 {[%clk
0:02:54.2]} 10. Re1 {[%clk 0:03:00.6]} 10... e5 {[%clk 0:02:47]} 11. d5 {[%clk
0:03:00.1]} 11... Na5 {[%clk 0:02:39.5]} 12. b3 {[%clk 0:02:58.6]} 12... e4
{[%clk 0:02:34.2]} 13. Nd4 {[%clk 0:02:55.5]} 13... Nxd5 {[%clk 0:02:31.4]} 14.
Nxe4 {[%clk 0:02:48.5]} 14... Nb4 {[%clk 0:02:13.7]} 15. Bb2 {[%clk 0:02:16.8]}
15... f5 {[%clk 0:01:53.2]} 16. Nc5 {[%clk 0:01:41.7]} 16... c6 {[%clk
0:01:42.8]} 17. a3 {[%clk 0:01:31.3]} 17... Nd5 {[%clk 0:01:41.7]} 18. Qc2
{[%clk 0:00:51.8]} 18... b6 {[%clk 0:00:53.6]} 19. Na4 {[%clk 0:00:34.8]} 19...
c5 {[%clk 0:00:51.1]} 20. Ne2 {[%clk 0:00:28.6]} 20... Bxb2 {[%clk 0:00:42.1]}
21. Nxb2 {[%clk 0:00:27.9]} 21... Be6 {[%clk 0:00:22.5]} 22. Red1 {[%clk
0:00:27.5]} 22... Qf6 {[%clk 0:00:12.5]} 23. Bxd5 {[%clk 0:00:25.4]} 23... Bxd5
{[%clk 0:00:12.7]} 24. Rxd5 {[%clk 0:00:25.4]} 24... Rad8 {[%clk 0:00:13.2]} 25.
Rad1 {[%clk 0:00:25]} 25... Rxd5 {[%clk 0:00:13.1]} 26. Rxd5 {[%clk 0:00:25.6]}
26... Nc6 {[%clk 0:00:12.3]} 27. Nc4 {[%clk 0:00:15.3]} 27... Qa1+ {[%clk
0:00:10.6]} 28. Kg2 {[%clk 0:00:15.2]} 28... Qg7 {[%clk 0:00:09.5]} 29. Qd2
{[%clk 0:00:13.9]} 29... h6 {[%clk 0:00:08.7]} 30. Rd7 {[%clk 0:00:14.2]} 30...
Re7 {[%clk 0:00:08.8]} 31. Qd5+ {[%clk 0:00:14.2]} 31... Kh7 {[%clk 0:00:08.8]}
32. Rxe7 {[%clk 0:00:13]} 32... Nxe7 {[%clk 0:00:08.9]} 33. Qd7 {[%clk
0:00:13.5]} 33... Ng8 {[%clk 0:00:08.7]} 34. Qxg7+ {[%clk 0:00:11.6]} 34... Kxg7
{[%clk 0:00:09.6]} 35. Nf4 {[%clk 0:00:11.8]} 35... Kf7 {[%clk 0:00:08.7]} 36.
h4 {[%clk 0:00:11.8]} 36... Ne7 {[%clk 0:00:08.3]} 37. Kf3 {[%clk 0:00:12.1]}
37... Kf6 {[%clk 0:00:08.2]} 38. Nd3 {[%clk 0:00:11.7]} 38... g5 {[%clk
0:00:08.4]} 39. hxg5+ {[%clk 0:00:11.4]} 39... hxg5 {[%clk 0:00:09.3]} 40. Ke2
{[%clk 0:00:11.5]} 40... Nd5 {[%clk 0:00:08.7]} 41. Kd2 {[%clk 0:00:10.6]} 41...
Ke6 {[%clk 0:00:08.9]} 42. Ncb2 {[%clk 0:00:10.4]} 42... Nf6 {[%clk 0:00:09]}
43. f3 {[%clk 0:00:09.4]} 43... Nh5 {[%clk 0:00:08.6]} 44. g4 {[%clk 0:00:08.3]}
44... fxg4 {[%clk 0:00:08.8]} 45. fxg4 {[%clk 0:00:09]} 45... Nf6 {[%clk
0:00:09.4]} 46. Nf2 {[%clk 0:00:09.4]} 46... Kd5 {[%clk 0:00:09.7]} 47. Kd3
{[%clk 0:00:09.8]} 47... b5 {[%clk 0:00:09.7]} 48. e4+ {[%clk 0:00:09.9]} 48...
Ke5 {[%clk 0:00:10]} 49. Ke3 {[%clk 0:00:10.1]} 49... Kd6 {[%clk 0:00:08.9]} 50.
Nbd3 {[%clk 0:00:10.5]} 50... Nd7 {[%clk 0:00:08.9]} 51. Nd1 {[%clk 0:00:08.2]}
51... c4 {[%clk 0:00:08.5]} 52. bxc4 {[%clk 0:00:08.2]} 52... bxc4 {[%clk
0:00:08.9]} 53. N3b2 {[%clk 0:00:08.6]} 53... Nb6 {[%clk 0:00:09]} 54. Kd4
{[%clk 0:00:08]} 54... Kc6 {[%clk 0:00:08.6]} 55. Nxc4 {[%clk 0:00:07.9]} 55...
Nd7 {[%clk 0:00:09.5]} 56. Ne5+ {[%clk 0:00:07.6]} 56... Nxe5 {[%clk 0:00:09.4]}
57. Kxe5 {[%clk 0:00:08.4]} 57... Kb5 {[%clk 0:00:10.3]} 58. Kf6 {[%clk
0:00:08.9]} 58... Ka4 {[%clk 0:00:11.2]} 59. e5 {[%clk 0:00:09.5]} 59... Kxa3
{[%clk 0:00:12.1]} 60. e6 {[%clk 0:00:10.1]} 60... Kb3 {[%clk 0:00:12.8]} 61. e7
{[%clk 0:00:10.7]} 61... a5 {[%clk 0:00:12.6]} 62. e8=Q {[%clk 0:00:10.9]} 62...
a4 {[%clk 0:00:13.5]} 63. Qe6+ {[%clk 0:00:11]} 63... Kb4 {[%clk 0:00:13.1]} 64.
Qe4+ {[%clk 0:00:10.6]} 1-0

[Event "Late-Titled-Tuesday-Blitz-March-19-2024"]
[Site "Chess.com"]
[Date "2024.03.19"]
[Round "10"]
[White "nindjaxx8"]
[Black "TheRigos"]
[Result "1/2-1/2"]
[WhiteElo "2659"]
[BlackElo "2575"]
[TimeControl "180+1"]
[EndTime "15:54:52 PDT"]
[Termination "Game drawn by stalemate"]

1. d4 {[%clk 0:03:00.9]} 1... Nf6 {[%clk 0:02:56.7]} 2. c4 {[%clk 0:02:57]} 2...
c5 {[%clk 0:02:57.6]} 3. e3 {[%clk 0:02:55.4]} 3... g6 {[%clk 0:02:46.2]} 4. Nc3
{[%clk 0:02:55.4]} 4... Bg7 {[%clk 0:02:46.3]} 5. Nf3 {[%clk 0:02:55.3]} 5...
O-O {[%clk 0:02:46.7]} 6. Be2 {[%clk 0:02:55.2]} 6... cxd4 {[%clk 0:02:46.4]} 7.
exd4 {[%clk 0:02:55.1]} 7... d5 {[%clk 0:02:46.4]} 8. O-O {[%clk 0:02:53.7]}
8... Nc6 {[%clk 0:02:38.5]} 9. Be3 {[%clk 0:02:53.1]} 9... Bg4 {[%clk 0:02:14]}
10. h3 {[%clk 0:02:48.9]} 10... Bxf3 {[%clk 0:01:55.5]} 11. Bxf3 {[%clk
0:02:49.8]} 11... dxc4 {[%clk 0:01:56.1]} 12. Rc1 {[%clk 0:02:48.4]} 12... Rc8
{[%clk 0:01:53.7]} 13. Kh1 {[%clk 0:02:23.9]} 13... a6 {[%clk 0:01:37.1]} 14.
Qa4 {[%clk 0:02:14.6]} 14... e6 {[%clk 0:01:29.9]} 15. Qxc4 {[%clk 0:02:05.2]}
15... Ne5 {[%clk 0:01:11.3]} 16. Qe2 {[%clk 0:02:04.5]} 16... Nxf3 {[%clk
0:01:11.8]} 17. Qxf3 {[%clk 0:02:05.4]} 17... b5 {[%clk 0:01:12.4]} 18. a3
{[%clk 0:02:00.9]} 18... h6 {[%clk 0:01:11.2]} 19. Rfd1 {[%clk 0:01:59.6]} 19...
Nd5 {[%clk 0:00:50.8]} 20. Ne4 {[%clk 0:01:59.1]} 20... Nxe3 {[%clk 0:00:40]}
21. fxe3 {[%clk 0:01:58.1]} 21... Qh4 {[%clk 0:00:30.1]} 22. Nc5 {[%clk
0:01:37.1]} 22... e5 {[%clk 0:00:25.4]} 23. dxe5 {[%clk 0:01:06.7]} 23... Qe7
{[%clk 0:00:22.5]} 24. Nxa6 {[%clk 0:00:22.6]} 24... Qxe5 {[%clk 0:00:17.1]} 25.
Rxc8 {[%clk 0:00:11.5]} 25... Rxc8 {[%clk 0:00:17]} 26. Rf1 {[%clk 0:00:12]}
26... Qe6 {[%clk 0:00:12.2]} 27. Nb4 {[%clk 0:00:07.3]} 27... Bxb2 {[%clk
0:00:09.9]} 28. e4 {[%clk 0:00:06.2]} 28... Be5 {[%clk 0:00:08.9]} 29. Nd5
{[%clk 0:00:06.4]} 29... Kg7 {[%clk 0:00:07.7]} 30. Qd3 {[%clk 0:00:05.3]} 30...
Bb8 {[%clk 0:00:07.2]} 31. Qf3 {[%clk 0:00:04.1]} 31... Rf8 {[%clk 0:00:06.7]}
32. Qc3+ {[%clk 0:00:04.2]} 32... Qe5 {[%clk 0:00:04.9]} 33. Qxe5+ {[%clk
0:00:04.4]} 33... Bxe5 {[%clk 0:00:05.3]} 34. Rb1 {[%clk 0:00:05]} 34... Ra8
{[%clk 0:00:05.4]} 35. Rb3 {[%clk 0:00:05.6]} 35... g5 {[%clk 0:00:04]} 36. Kg1
{[%clk 0:00:05.6]} 36... Ra4 {[%clk 0:00:04.5]} 37. Kf2 {[%clk 0:00:04.6]} 37...
Rxe4 {[%clk 0:00:04.7]} 38. Rxb5 {[%clk 0:00:05.1]} 38... Ra4 {[%clk 0:00:05.1]}
39. Rb3 {[%clk 0:00:05.1]} 39... Bd6 {[%clk 0:00:05.6]} 40. Ke2 {[%clk
0:00:04.5]} 40... Rxa3 {[%clk 0:00:05.6]} 41. Rxa3 {[%clk 0:00:03.3]} 41... Bxa3
{[%clk 0:00:06.5]} 42. Kf3 {[%clk 0:00:04.1]} 42... f5 {[%clk 0:00:04.4]} 43. g4
{[%clk 0:00:04]} 43... Kg6 {[%clk 0:00:04.5]} 44. gxf5+ {[%clk 0:00:03.9]} 44...
Kxf5 {[%clk 0:00:04.9]} 45. Ne3+ {[%clk 0:00:04.8]} 45... Kg6 {[%clk 0:00:05.3]}
46. Ng4 {[%clk 0:00:05.2]} 46... Be7 {[%clk 0:00:05.8]} 47. Nf2 {[%clk
0:00:04.7]} 47... Kf5 {[%clk 0:00:06.1]} 48. Ng4 {[%clk 0:00:04.3]} 48... Kg6
{[%clk 0:00:05.8]} 49. Ne3 {[%clk 0:00:04.8]} 49... Bd6 {[%clk 0:00:05.8]} 50.
Nf1 {[%clk 0:00:04.3]} 50... Bc7 {[%clk 0:00:06.1]} 51. Nd2 {[%clk 0:00:04.9]}
51... Kf5 {[%clk 0:00:06.3]} 52. Ne4 {[%clk 0:00:04.8]} 52... h5 {[%clk
0:00:06.1]} 53. Nxg5 {[%clk 0:00:04.7]} 53... Kxg5 {[%clk 0:00:04.4]} 54. Kg2
{[%clk 0:00:05.6]} 54... Kh4 {[%clk 0:00:03.9]} 55. Kh1 {[%clk 0:00:06.5]} 55...
Kg3 {[%clk 0:00:04.1]} 56. Kg1 {[%clk 0:00:06.9]} 56... Bb6+ {[%clk 0:00:04.2]}
57. Kh1 {[%clk 0:00:07.3]} 57... Be3 {[%clk 0:00:04.3]} 58. h4 {[%clk
0:00:07.7]} 58... Kg4 {[%clk 0:00:04.6]} 59. Kh2 {[%clk 0:00:08]} 59... Bf4+
{[%clk 0:00:05.5]} 60. Kh1 {[%clk 0:00:08.5]} 60... Bg3 {[%clk 0:00:06.4]} 61.
Kg1 {[%clk 0:00:08.9]} 61... Bxh4 {[%clk 0:00:07.3]} 62. Kh1 {[%clk 0:00:09.8]}
62... Bg5 {[%clk 0:00:08.2]} 63. Kh2 {[%clk 0:00:10.3]} 63... Bf4+ {[%clk
0:00:09.1]} 64. Kh1 {[%clk 0:00:11.1]} 64... Kh3 {[%clk 0:00:10]} 65. Kg1 {[%clk
0:00:11.4]} 65... Kh4 {[%clk 0:00:10.9]} 66. Kh1 {[%clk 0:00:12.3]} 66... Kg4
{[%clk 0:00:11.8]} 67. Kg2 {[%clk 0:00:12.3]} 67... Kh4 {[%clk 0:00:12.1]} 68.
Kh1 {[%clk 0:00:13.2]} 68... Kg3 {[%clk 0:00:13]} 69. Kg1 {[%clk 0:00:13.3]}
69... Be3+ {[%clk 0:00:13.9]} 70. Kh1 {[%clk 0:00:14.2]} 70... h4 {[%clk
0:00:14.8]} 1/2-1/2

[Event "Late-Titled-Tuesday-Blitz-March-19-2024"]
[Site "Chess.com"]
[Date "2024.03.19"]
[Round "10"]
[White "Willhaven3"]
[Black "Viktor_Poddubnyi"]
[Result "0-1"]
[WhiteElo "2485"]
[BlackElo "2325"]
[TimeControl "180+1"]
[EndTime "15:54:52 PDT"]
[Termination "Viktor_Poddubnyi won by checkmate"]

1. e4 {[%clk 0:03:00.9]} 1... g6 {[%clk 0:02:59.9]} 2. c4 {[%clk 0:02:57.7]}
2... Bg7 {[%clk 0:02:59.9]} 3. Nc3 {[%clk 0:02:57.7]} 3... c5 {[%clk 0:02:59.6]}
4. g3 {[%clk 0:02:58.1]} 4... Nc6 {[%clk 0:02:59.5]} 5. Bg2 {[%clk 0:02:58.7]}
5... Nf6 {[%clk 0:02:59.1]} 6. Nge2 {[%clk 0:02:59]} 6... O-O {[%clk 0:02:58.9]}
7. O-O {[%clk 0:02:59.2]} 7... d6 {[%clk 0:02:58.6]} 8. d3 {[%clk 0:02:59.8]}
8... a6 {[%clk 0:02:58.4]} 9. h3 {[%clk 0:03:00.3]} 9... Rb8 {[%clk 0:02:56.1]}
10. Rb1 {[%clk 0:02:54]} 10... b5 {[%clk 0:02:53.2]} 11. b3 {[%clk 0:02:54.2]}
11... b4 {[%clk 0:02:31.5]} 12. Nd5 {[%clk 0:02:53.8]} 12... Ne8 {[%clk
0:02:03]} 13. Be3 {[%clk 0:02:52.1]} 13... e6 {[%clk 0:02:01.8]} 14. Ndf4 {[%clk
0:02:51.6]} 14... Nc7 {[%clk 0:01:43.4]} 15. h4 {[%clk 0:02:47.4]} 15... e5
{[%clk 0:01:34.4]} 16. Nd5 {[%clk 0:02:46.7]} 16... Nxd5 {[%clk 0:01:34.6]} 17.
cxd5 {[%clk 0:02:47]} 17... Na7 {[%clk 0:01:23.4]} 18. Qd2 {[%clk 0:02:46.5]}
18... Nb5 {[%clk 0:01:22.2]} 19. h5 {[%clk 0:02:42.2]} 19... a5 {[%clk 0:01:20]}
20. hxg6 {[%clk 0:02:38.1]} 20... fxg6 {[%clk 0:01:09.9]} 21. f4 {[%clk
0:02:37.5]} 21... Rb7 {[%clk 0:00:53.9]} 22. fxe5 {[%clk 0:02:36.2]} 22... Bxe5
{[%clk 0:00:53]} 23. Nf4 {[%clk 0:02:17.3]} 23... Rbf7 {[%clk 0:00:47.2]} 24.
Rf2 {[%clk 0:02:12.1]} 24... Qe7 {[%clk 0:00:37.8]} 25. Rbf1 {[%clk 0:02:10.6]}
25... Nd4 {[%clk 0:00:35.4]} 26. Kh2 {[%clk 0:02:00.3]} 26... Bd7 {[%clk
0:00:35.1]} 27. Nh3 {[%clk 0:01:47.9]} 27... Bxh3 {[%clk 0:00:23.4]} 28. Kxh3
{[%clk 0:01:38.4]} 28... Rxf2 {[%clk 0:00:15.8]} 29. Rxf2 {[%clk 0:01:35.8]}
29... Rxf2 {[%clk 0:00:15.6]} 30. Qxf2 {[%clk 0:01:36.7]} 30... Qf7 {[%clk
0:00:15.6]} 31. Bxd4 {[%clk 0:01:26.5]} 31... Bxd4 {[%clk 0:00:14.8]} 32. Qf4
{[%clk 0:01:23.7]} 32... Be5 {[%clk 0:00:13.1]} 33. Qe3 {[%clk 0:00:45]} 33...
Kg7 {[%clk 0:00:13]} 34. Bf3 {[%clk 0:00:45]} 34... Qf6 {[%clk 0:00:11.7]} 35.
Bg4 {[%clk 0:00:40.6]} 35... Qf1+ {[%clk 0:00:09.6]} 36. Kh2 {[%clk 0:00:40.2]}
36... Bd4 {[%clk 0:00:08.1]} 37. Qe2 {[%clk 0:00:31.9]} 37... Qg1+ {[%clk
0:00:05.8]} 38. Kh3 {[%clk 0:00:31.8]} 38... Bf2 {[%clk 0:00:03]} 39. Qf3 {[%clk
0:00:28.5]} 39... Qf1+ {[%clk 0:00:02.4]} 40. Kh4 {[%clk 0:00:21.9]} 40... Qg1
{[%clk 0:00:02.9]} 41. Be6 {[%clk 0:00:19.4]} 41... Qh2+ {[%clk 0:00:03]} 42.
Bh3 {[%clk 0:00:19.6]} 42... Bd4 {[%clk 0:00:01.6]} 43. Qg4 {[%clk 0:00:19.3]}
43... Bf6+ {[%clk 0:00:01.5]} 44. Qg5 {[%clk 0:00:19.9]} 44... Bxg5+ {[%clk
0:00:01.8]} 45. Kxg5 {[%clk 0:00:20.8]} 45... Qxg3+ {[%clk 0:00:02.4]} 46. Bg4
{[%clk 0:00:20.6]} 46... Qe3+ {[%clk 0:00:02.8]} 47. Kh4 {[%clk 0:00:20.1]}
47... Qxd3 {[%clk 0:00:03.7]} 48. e5 {[%clk 0:00:19.7]} 48... dxe5 {[%clk
0:00:03.6]} 49. Be6 {[%clk 0:00:18.5]} 49... Qd4+ {[%clk 0:00:03.9]} 50. Kg3
{[%clk 0:00:18.5]} 50... e4 {[%clk 0:00:04.8]} 51. Kg2 {[%clk 0:00:17.7]} 51...
Kf6 {[%clk 0:00:05.2]} 52. Kf1 {[%clk 0:00:18]} 52... Ke5 {[%clk 0:00:05.4]} 53.
Ke2 {[%clk 0:00:18.9]} 53... Qxd5 {[%clk 0:00:05.6]} 54. Bxd5 {[%clk 0:00:18.9]}
54... Kxd5 {[%clk 0:00:06.5]} 55. Ke3 {[%clk 0:00:18.9]} 55... Ke5 {[%clk
0:00:07.4]} 56. Ke2 {[%clk 0:00:18.9]} 56... Kf4 {[%clk 0:00:07.6]} 57. Kf2
{[%clk 0:00:19.8]} 57... e3+ {[%clk 0:00:08.1]} 58. Ke2 {[%clk 0:00:20.7]} 58...
Ke4 {[%clk 0:00:08.9]} 59. Ke1 {[%clk 0:00:21.2]} 59... Kf3 {[%clk 0:00:09.3]}
60. Kf1 {[%clk 0:00:21.3]} 60... e2+ {[%clk 0:00:09.7]} 61. Ke1 {[%clk
0:00:20.6]} 61... Ke3 {[%clk 0:00:10.1]} 62. a4 {[%clk 0:00:21.5]} 62... bxa3
{[%clk 0:00:10.4]} 63. b4 {[%clk 0:00:22]} 63... a2 {[%clk 0:00:10.7]} 64. b5
{[%clk 0:00:22.9]} 64... a1=Q# {[%clk 0:00:10]} 0-1

[Event "Late-Titled-Tuesday-Blitz-March-19-2024"]
[Site "Chess.com"]
[Date "2024.03.19"]
[Round "10"]
[White "aistrel"]
[Black "KNVB"]
[Result "1/2-1/2"]
[WhiteElo "2665"]
[BlackElo "2804"]
[TimeControl "180+1"]
[EndTime "15:54:53 PDT"]
[Termination "Game drawn by stalemate"]

1. d4 {[%clk 0:03:00.9]} 1... e5 {[%clk 0:02:58.7]} 2. dxe5 {[%clk 0:03:00.7]}
2... Nc6 {[%clk 0:02:58.9]} 3. Nf3 {[%clk 0:03:01.2]} 3... Qe7 {[%clk
0:02:59.4]} 4. Bf4 {[%clk 0:03:01.8]} 4... Qb4+ {[%clk 0:02:59.9]} 5. Bd2 {[%clk
0:03:02.4]} 5... Qxb2 {[%clk 0:03:00.6]} 6. Nc3 {[%clk 0:03:03.1]} 6... Bb4
{[%clk 0:03:01.3]} 7. Rb1 {[%clk 0:03:02.6]} 7... Qxc3 {[%clk 0:03:01.9]} 8.
Bxc3 {[%clk 0:03:02.7]} 8... Bxc3+ {[%clk 0:03:02.8]} 9. Nd2 {[%clk 0:03:02.9]}
9... Nxe5 {[%clk 0:03:03.4]} 10. e3 {[%clk 0:02:50.4]} 10... Nf6 {[%clk
0:02:59.6]} 11. Bd3 {[%clk 0:02:50.2]} 11... O-O {[%clk 0:02:59.9]} 12. O-O
{[%clk 0:02:50]} 12... d5 {[%clk 0:03:00.6]} 13. h3 {[%clk 0:02:48.8]} 13... b6
{[%clk 0:02:58.9]} 14. Nf3 {[%clk 0:02:47.7]} 14... Nxf3+ {[%clk 0:02:59.1]} 15.
Qxf3 {[%clk 0:02:48.6]} 15... Be6 {[%clk 0:02:53.2]} 16. Bf5 {[%clk 0:02:25.8]}
16... Rae8 {[%clk 0:02:52.9]} 17. e4 {[%clk 0:02:22]} 17... d4 {[%clk
0:02:34.1]} 18. e5 {[%clk 0:02:09.7]} 18... Nd7 {[%clk 0:02:01.9]} 19. Bxe6
{[%clk 0:01:54.3]} 19... Rxe6 {[%clk 0:02:02.8]} 20. Qb7 {[%clk 0:01:54.4]}
20... Nxe5 {[%clk 0:01:26.9]} 21. f4 {[%clk 0:01:54.4]} 21... Nc4 {[%clk
0:01:11.9]} 22. f5 {[%clk 0:01:35.7]} 22... Rf6 {[%clk 0:00:33.4]} 23. Qxc7
{[%clk 0:01:35.3]} 23... Nd2 {[%clk 0:00:27.8]} 24. Qxa7 {[%clk 0:01:31.3]}
24... Nxf1 {[%clk 0:00:21.7]} 25. Rxf1 {[%clk 0:01:28]} 25... b5 {[%clk
0:00:20.7]} 26. g4 {[%clk 0:01:25.9]} 26... h6 {[%clk 0:00:18.8]} 27. h4 {[%clk
0:01:22.4]} 27... Rd6 {[%clk 0:00:12]} 28. g5 {[%clk 0:01:11]} 28... d3 {[%clk
0:00:11.9]} 29. Qe7 {[%clk 0:01:04]} 29... Rfd8 {[%clk 0:00:02.6]} 30. cxd3
{[%clk 0:01:03.5]} 30... Bd4+ {[%clk 0:00:02.2]} 31. Kg2 {[%clk 0:01:02.7]}
31... Bc5 {[%clk 0:00:02.2]} 32. f6 {[%clk 0:00:50.2]} 32... Rd5 {[%clk
0:00:01.6]} 33. Qc7 {[%clk 0:00:40.5]} 33... hxg5 {[%clk 0:00:01.6]} 34. fxg7
{[%clk 0:00:40.4]} 34... R8d7 {[%clk 0:00:02.2]} 35. Qc6 {[%clk 0:00:34.2]}
35... Kxg7 {[%clk 0:00:02.3]} 36. Qf6+ {[%clk 0:00:34.5]} 36... Kg8 {[%clk
0:00:02.4]} 37. Rf5 {[%clk 0:00:31.4]} 37... Bd4 {[%clk 0:00:02.5]} 38. Rxd5
{[%clk 0:00:30.8]} 38... Rxd5 {[%clk 0:00:03.1]} 39. Qf3 {[%clk 0:00:29.1]}
39... Rd6 {[%clk 0:00:03]} 40. h5 {[%clk 0:00:29.5]} 40... f5 {[%clk 0:00:02.7]}
41. Qxf5 {[%clk 0:00:29.3]} 41... Bg7 {[%clk 0:00:02.9]} 42. Qxb5 {[%clk
0:00:27.7]} 42... g4 {[%clk 0:00:03.1]} 43. Qf5 {[%clk 0:00:26.6]} 43... Kh8
{[%clk 0:00:02]} 44. Kg3 {[%clk 0:00:26.6]} 44... Rd4 {[%clk 0:00:02]} 45. Qg6
{[%clk 0:00:22.7]} 45... Rd8 {[%clk 0:00:01.7]} 46. h6 {[%clk 0:00:23]} 46...
Bd4 {[%clk 0:00:02.1]} 47. Qe4 {[%clk 0:00:19.3]} 47... Bf6 {[%clk 0:00:02.2]}
48. Qe6 {[%clk 0:00:19.2]} 48... Bd4 {[%clk 0:00:02.7]} 49. Kxg4 {[%clk
0:00:19.2]} 49... Rg8+ {[%clk 0:00:02.6]} 50. Kf5 {[%clk 0:00:19.6]} 50... Rf8+
{[%clk 0:00:02.8]} 51. Kg6 {[%clk 0:00:19.9]} 51... Bc3 {[%clk 0:00:01.7]} 52.
a4 {[%clk 0:00:18.7]} 52... Rg8+ {[%clk 0:00:02.1]} 53. Qxg8+ {[%clk 0:00:19]}
53... Kxg8 {[%clk 0:00:03]} 54. h7+ {[%clk 0:00:18.3]} 54... Kh8 {[%clk
0:00:03.4]} 55. Kh6 {[%clk 0:00:17.9]} 55... Bd2+ {[%clk 0:00:03.2]} 56. Kg6
{[%clk 0:00:17.7]} 56... Bc3 {[%clk 0:00:04.1]} 57. Kf5 {[%clk 0:00:17.4]} 57...
Kxh7 {[%clk 0:00:04.4]} 58. Ke6 {[%clk 0:00:18]} 58... Kg7 {[%clk 0:00:03.9]}
59. Kd5 {[%clk 0:00:18.3]} 59... Kf7 {[%clk 0:00:04.5]} 60. d4 {[%clk
0:00:19.2]} 60... Ke7 {[%clk 0:00:04]} 61. Kc4 {[%clk 0:00:18.4]} 61... Be1
{[%clk 0:00:04.6]} 62. d5 {[%clk 0:00:18.4]} 62... Kd7 {[%clk 0:00:05.3]} 63.
Kc5 {[%clk 0:00:19.3]} 63... Bf2+ {[%clk 0:00:05.1]} 64. Kb5 {[%clk 0:00:20.2]}
64... Kd6 {[%clk 0:00:05.4]} 65. Ka6 {[%clk 0:00:20.7]} 65... Kxd5 {[%clk
0:00:06]} 66. Kb7 {[%clk 0:00:21.6]} 66... Kd6 {[%clk 0:00:06.4]} 67. a5 {[%clk
0:00:22.5]} 67... Be3 {[%clk 0:00:06.9]} 68. a6 {[%clk 0:00:23.4]} 68... Bd4
{[%clk 0:00:07.5]} 69. Kb8 {[%clk 0:00:23.9]} 69... Kc6 {[%clk 0:00:07.3]} 70.
Ka8 {[%clk 0:00:23.7]} 70... Bc5 {[%clk 0:00:07.1]} 71. a7 {[%clk 0:00:24.6]}
71... Kc7 {[%clk 0:00:04.6]} 1/2-1/2

[Event "Late-Titled-Tuesday-Blitz-March-19-2024"]
[Site "Chess.com"]
[Date "2024.03.19"]
[Round "10"]
[White "Sandstad"]
[Black "ChempionBg"]
[Result "0-1"]
[WhiteElo "2490"]
[BlackElo "2365"]
[TimeControl "180+1"]
[EndTime "15:54:57 PDT"]
[Termination "ChempionBg won by checkmate"]

1. d4 {[%clk 0:02:46.5]} 1... Nf6 {[%clk 0:02:47.8]} 2. c4 {[%clk 0:02:46.3]}
2... g6 {[%clk 0:02:46.8]} 3. Nc3 {[%clk 0:02:46.4]} 3... Bg7 {[%clk 0:02:47]}
4. e4 {[%clk 0:02:46.4]} 4... d6 {[%clk 0:02:47.5]} 5. Be2 {[%clk 0:02:46.7]}
5... O-O {[%clk 0:02:47.1]} 6. Be3 {[%clk 0:02:46.9]} 6... a6 {[%clk 0:02:43.9]}
7. h4 {[%clk 0:02:45.9]} 7... h5 {[%clk 0:02:42.6]} 8. f3 {[%clk 0:02:41.7]}
8... Nc6 {[%clk 0:02:38.2]} 9. g4 {[%clk 0:02:38.6]} 9... e5 {[%clk 0:02:32.5]}
10. d5 {[%clk 0:02:36.7]} 10... Nd4 {[%clk 0:02:32.6]} 11. g5 {[%clk 0:02:36]}
11... Nd7 {[%clk 0:02:28.2]} 12. Bd3 {[%clk 0:02:31.5]} 12... Nc5 {[%clk
0:02:18]} 13. Bb1 {[%clk 0:02:30.9]} 13... b5 {[%clk 0:02:16.7]} 14. Nge2 {[%clk
0:02:27.7]} 14... Nxf3+ {[%clk 0:02:13.3]} 15. Kf2 {[%clk 0:02:22.9]} 15... Bg4
{[%clk 0:02:09.6]} 16. b4 {[%clk 0:01:52.6]} 16... Nd7 {[%clk 0:02:00.9]} 17. c5
{[%clk 0:01:37.3]} 17... f6 {[%clk 0:01:59.1]} 18. c6 {[%clk 0:01:33]} 18... Nb6
{[%clk 0:01:56.9]} 19. Qd3 {[%clk 0:01:15.7]} 19... fxg5 {[%clk 0:01:45.9]} 20.
hxg5 {[%clk 0:01:12.5]} 20... Nc4 {[%clk 0:01:29.1]} 21. Bc1 {[%clk 0:01:06.7]}
21... Nfd2+ {[%clk 0:01:13.3]} 22. Ke1 {[%clk 0:01:04.2]} 22... Nf3+ {[%clk
0:00:51.3]} 23. Kd1 {[%clk 0:01:03.5]} 23... Nd4 {[%clk 0:00:46.8]} 24. a4
{[%clk 0:00:58]} 24... Rf2 {[%clk 0:00:43.1]} 25. Re1 {[%clk 0:00:58.1]} 25...
Rf3 {[%clk 0:00:28.6]} 26. Ra2 {[%clk 0:00:33.3]} 26... Rxd3+ {[%clk 0:00:25.5]}
27. Bxd3 {[%clk 0:00:34.2]} 27... Nf3 {[%clk 0:00:20.7]} 28. Rf1 {[%clk
0:00:31]} 28... Nxg5 {[%clk 0:00:19.4]} 29. axb5 {[%clk 0:00:30.2]} 29... axb5
{[%clk 0:00:17.4]} 30. Rxa8 {[%clk 0:00:31.1]} 30... Qxa8 {[%clk 0:00:16.8]} 31.
Bxg5 {[%clk 0:00:30.9]} 31... Nb2+ {[%clk 0:00:16.2]} 32. Kc2 {[%clk 0:00:30.4]}
32... Nxd3 {[%clk 0:00:16.1]} 33. Kxd3 {[%clk 0:00:31.3]} 33... Qa3 {[%clk
0:00:14]} 34. Bd2 {[%clk 0:00:30.2]} 34... Qb3 {[%clk 0:00:11.9]} 35. Rf2 {[%clk
0:00:19.5]} 35... Qc4+ {[%clk 0:00:10.6]} 36. Kc2 {[%clk 0:00:19.8]} 36... h4
{[%clk 0:00:08.5]} 37. Rh2 {[%clk 0:00:18.6]} 37... Bf3 {[%clk 0:00:07.5]} 38.
Nc1 {[%clk 0:00:18.7]} 38... Bxe4+ {[%clk 0:00:07.5]} 39. Kb2 {[%clk 0:00:19.2]}
39... Qxb4+ {[%clk 0:00:06.8]} 40. Nb3 {[%clk 0:00:19.6]} 40... Bd3 {[%clk
0:00:05.7]} 41. Rxh4 {[%clk 0:00:18.1]} 41... Bc4 {[%clk 0:00:04.9]} 42. Rxc4
{[%clk 0:00:12.2]} 42... bxc4 {[%clk 0:00:04.3]} 43. Ne4 {[%clk 0:00:11.7]}
43... Qxb3+ {[%clk 0:00:04.4]} 44. Kc1 {[%clk 0:00:11.7]} 44... Qd3 {[%clk
0:00:04.4]} 45. Nxd6 {[%clk 0:00:10.6]} 45... Qxd5 {[%clk 0:00:04]} 46. Nc8
{[%clk 0:00:08]} 46... Kf7 {[%clk 0:00:02.4]} 47. Ba5 {[%clk 0:00:05.2]} 47...
Qxc6 {[%clk 0:00:02.5]} 48. Bxc7 {[%clk 0:00:04.8]} 48... Qxc7 {[%clk
0:00:02.6]} 49. Nd6+ {[%clk 0:00:05.7]} 49... Qxd6 {[%clk 0:00:02.7]} 50. Kc2
{[%clk 0:00:06.6]} 50... Qd4 {[%clk 0:00:02.7]} 51. Kc1 {[%clk 0:00:07.5]} 51...
Qd3 {[%clk 0:00:02.9]} 52. Kb2 {[%clk 0:00:07]} 52... Qb3+ {[%clk 0:00:03]} 53.
Kc1 {[%clk 0:00:06.7]} 53... e4 {[%clk 0:00:03.2]} 54. Kd2 {[%clk 0:00:07]}
54... Bd4 {[%clk 0:00:03.5]} 55. Ke2 {[%clk 0:00:07.3]} 55... Qd3+ {[%clk
0:00:03.8]} 56. Ke1 {[%clk 0:00:07.5]} 56... Bc3+ {[%clk 0:00:03.8]} 57. Kf2
{[%clk 0:00:07.6]} 57... Qf3+ {[%clk 0:00:04.4]} 58. Kg1 {[%clk 0:00:07.6]}
58... Qe2 {[%clk 0:00:04.8]} 59. Kh1 {[%clk 0:00:07.9]} 59... Be5 {[%clk
0:00:04.9]} 60. Kg1 {[%clk 0:00:08.2]} 60... Bg3 {[%clk 0:00:05]} 61. Kh1 {[%clk
0:00:08.7]} 61... Qh2# {[%clk 0:00:05.1]} 0-1